{"text_format":"1","workbook":"xlsx","n_sheets":2,"sheets":["planning","printblad"],"not_rendered":{"charts":0,"images":4,"macros":1,"external_links":0,"defined_names":1,"comments":0,"pivot_tables":0},"unopened":[],"bounds":{"document_bytes":16777216,"sheet_cells":100000,"rows_first":2000,"rows_last":500,"rows_between":2000,"halvings":0,"cell_chars":16384,"cell_head_chars":4096},"cells_cut":0,"cells_raw":0,"read":"whole","date_system":"1900"}

{"sheet":"planning","index":0,"n_rows":72,"n_cols":25,"rows_kept":72,"cut":false,"hidden":false,"merged":[[50,2,50,5],[5,22,6,22],[5,23,5,24],[52,2,53,2],[52,3,53,3],[52,4,53,4],[52,5,53,5],[37,2,38,2],[37,3,38,3],[37,4,38,4],[37,5,38,5],[35,2,35,5],[9,2,10,2],[9,3,10,3],[9,4,10,4],[9,5,10,5],[5,2,5,5],[7,2,7,5],[2,23,2,24],[4,22,4,24],[2,2,2,3],[2,4,2,5],[3,2,3,3],[3,4,3,5]]}
[]
[]
[null,null,"Kandidaatnaam: ",null,null,null,null,null,null,null,null,null,null,null,null,null,null,null,null,null,null,null,null,"geen schoonmaak "]
[null,null,"Kandidaatnummer:"]
[null,null,null,null,null,null,null,null,null,null,null,null,null,null,null,null,null,null,null,null,null,null,"schoonmaakmedewerkers: "]
[null,null,"schoonmaak bungalows week 19",null,null,null,null,null,null,null,null,null,null,null,null,null,null,null,null,null,null,null,"naam","aantal bungalows"]
[null,null,null,null,null,null,null,null,null,null,null,null,null,null,null,null,null,null,null,null,null,null,null,"maandag","vrijdag"]
[null,null,"straat: Ostrea",null,null,null,null,null,null,null,null,null,null,null,null,null,null,null,null,null,null,null,"Ans",{"$f":"COUNTIF($D:$D,$W8)","v":0},{"$f":"COUNTIF($E:$E,$W8)","v":0}]
[null,null,null,null,null,null,null,null,null,null,null,null,null,null,null,null,null,null,null,null,null,null,"Abdel",{"$f":"COUNTIF($D:$D,$W9)","v":0},{"$f":"COUNTIF($E:$E,$W9)","v":0}]
[null,null,"bungalownummer","maandag 8 mei","vrijdag    12 mei","verhuur       week 19",null,null,null,null,null,null,null,null,null,null,null,null,null,null,null,null,"Donna",0,0]
[null,null,null,null,null,null,null,null,null,null,null,null,null,null,null,null,null,null,null,null,null,null,"Eddy",0,0]
[null,null,67,null,null,"midweek ",null,null,null,null,null,null,null,null,null,null,null,null,null,null,null,null,"Fatima",0,0]
[null,null,69,null,null,"midweek",null,null,null,null,null,null,null,null,null,null,null,null,null,null,null,null,"Jannie",0,0]
[null,null,71,null,null,"weekend",null,null,null,null,null,null,null,null,null,null,null,null,null,null,null,null,"Kyra",0,0]
[null,null,73,null,null,"één week",null,null,null,null,null,null,null,null,null,null,null,null,null,null,null,null,"Nena",0,0]
[null,null,75,null,null,"weekend",null,null,null,null,null,null,null,null,null,null,null,null,null,null,null,null,"Shakir",0,0]
[null,null,77,null,null,"weekend"]
[null,null,79,null,null,"midweek"]
[null,null,81,null,null,"één week"]
[null,null,83,null,null,"midweek"]
[null,null,85,null,null,"midweek"]
[null,null,87,null,null,"één week"]
[null,null,148,null,null,"midweek"]
[null,null,150,null,null,"één week"]
[null,null,152,null,null,"midweek"]
[null,null,154,null,null,"weekend"]
[null,null,156,null,null,"midweek "]
[null,null,158,null,null,"midweek"]
[null,null,160,null,null,"één week"]
[null,null,162,null,null,"weekend"]
[null,null,164,null,null,"24 april-15 mei"]
[null,null,166,null,null,"24 april-15 mei"]
[null,null,168,null,null,"midweek"]
[null,null,170,null,null,"één week"]
[]
[null,null,"straat: Sophiaboulevard"]
[]
[null,null,"bungalownummer","maandag 8 mei","vrijdag    12 mei","verhuur       week 19 "]
[]
[null,null,2,null,null,"midweek"]
[null,null,4,null,null,"midweek"]
[null,null,6,null,null,"1- 15 mei"]
[null,null,8,null,null,"midweek"]
[null,null,10,null,null,"midweek"]
[null,null,12,null,null,"weekend"]
[null,null,14,null,null,"midweek"]
[null,null,16,null,null,"midweek"]
[null,null,18,null,null,"één week"]
[null,null,20,null,null,"midweek"]
[]
[null,null,"straat: Cardium "]
[]
[null,null,"bungalownummer","maandag 8 mei","vrijdag    12 mei","verhuur       week 19 "]
[]
[null,null,5,null,null,"midweek"]
[null,null,7,null,null,"midweek"]
[null,null,9,null,null,"1 mei-24 mei"]
[null,null,11,null,null,"midweek "]
[null,null,15,null,null,"midweek"]
[null,null,17,null,null,"één week"]
[null,null,19,null,null,"midweek"]
[null,null,21,null,null,"weekend"]
[null,null,23,null,null,"midweek"]
[null,null,25,null,null,"één week"]
[null,null,27,null,null,"weekend"]
[null,null,29,null,null,"1- 15 mei"]
[null,null,31,null,null,"midweek"]
[null,null,33,null,null,"midweek"]
[null,null,35,null,null,"weekend"]
[null,null,37,null,null,"één week"]
[null,null,39,null,null,"24 april-15 mei"]
[null,null,41,null,null,"midweek "]

{"sheet":"printblad","index":1,"n_rows":45,"n_cols":11,"rows_kept":45,"cut":false,"hidden":false,"merged":[[2,2,2,3],[3,2,3,3],[2,4,2,5],[3,4,3,5],[5,2,5,5],[33,2,33,5],[20,7,20,10],[7,7,7,9],[8,7,9,7],[8,8,8,9],[7,2,7,5]]}
[]
[]
[null,null,{"$f":"planning!C3","v":"Kandidaatnaam: "},null,{"$f":"planning!E3","v":0}]
[null,null,{"$f":"planning!C4","v":"Kandidaatnummer:"},null,{"$f":"planning!E4","v":0}]
[]
[null,null,{"$f":"planning!C6","v":"schoonmaak bungalows week 19"}]
[]
[null,null,{"$f":"planning!C8","v":"straat: Ostrea"},null,null,null,null,{"$f":"planning!W5","v":"schoonmaakmedewerkers: "}]
[null,null,"bungalow","maandag","vrijdag","verhuur",null,{"$f":"planning!W6","v":"naam"},{"$f":"planning!X6","v":"aantal bungalows"}]
[null,null,{"$f":"planning!C12","v":67},{"$f":"planning!D12","v":0},{"$f":"planning!E12","v":0},{"$f":"planning!F12","v":"midweek "},null,null,{"$f":"planning!X7","v":"maandag"},{"$f":"planning!Y7","v":"vrijdag"}]
[null,null,{"$f":"planning!C13","v":69},{"$f":"planning!D13","v":0},{"$f":"planning!E13","v":0},{"$f":"planning!F13","v":"midweek"},null,{"$f":"planning!W8","v":"Ans"},{"$f":"planning!X8","v":0},{"$f":"planning!Y8","v":0}]
[null,null,{"$f":"planning!C14","v":71},{"$f":"planning!D14","v":0},{"$f":"planning!E14","v":0},{"$f":"planning!F14","v":"weekend"},null,{"$f":"planning!W9","v":"Abdel"},{"$f":"planning!X9","v":0},{"$f":"planning!Y9","v":0}]
[null,null,{"$f":"planning!C15","v":73},{"$f":"planning!D15","v":0},{"$f":"planning!E15","v":0},{"$f":"planning!F15","v":"één week"},null,{"$f":"planning!W10","v":"Donna"},{"$f":"planning!X10","v":0},{"$f":"planning!Y10","v":0}]
[null,null,{"$f":"planning!C16","v":75},{"$f":"planning!D16","v":0},{"$f":"planning!E16","v":0},{"$f":"planning!F16","v":"weekend"},null,{"$f":"planning!W11","v":"Eddy"},{"$f":"planning!X11","v":0},{"$f":"planning!Y11","v":0}]
[null,null,{"$f":"planning!C17","v":77},{"$f":"planning!D17","v":0},{"$f":"planning!E17","v":0},{"$f":"planning!F17","v":"weekend"},null,{"$f":"planning!W12","v":"Fatima"},{"$f":"planning!X12","v":0},{"$f":"planning!Y12","v":0}]
[null,null,{"$f":"planning!C18","v":79},{"$f":"planning!D18","v":0},{"$f":"planning!E18","v":0},{"$f":"planning!F18","v":"midweek"},null,{"$f":"planning!W13","v":"Jannie"},{"$f":"planning!X13","v":0},{"$f":"planning!Y13","v":0}]
[null,null,{"$f":"planning!C19","v":81},{"$f":"planning!D19","v":0},{"$f":"planning!E19","v":0},{"$f":"planning!F19","v":"één week"},null,{"$f":"planning!W14","v":"Kyra"},{"$f":"planning!X14","v":0},{"$f":"planning!Y14","v":0}]
[null,null,{"$f":"planning!C20","v":83},{"$f":"planning!D20","v":0},{"$f":"planning!E20","v":0},{"$f":"planning!F20","v":"midweek"},null,{"$f":"planning!W15","v":"Nena"},{"$f":"planning!X15","v":0},{"$f":"planning!Y15","v":0}]
[null,null,{"$f":"planning!C21","v":85},{"$f":"planning!D21","v":0},{"$f":"planning!E21","v":0},{"$f":"planning!F21","v":"midweek"},null,{"$f":"planning!W16","v":"Shakir"},{"$f":"planning!X16","v":0},{"$f":"planning!Y16","v":0}]
[null,null,{"$f":"planning!C22","v":87},{"$f":"planning!D22","v":0},{"$f":"planning!E22","v":0},{"$f":"planning!F22","v":"één week"}]
[null,null,{"$f":"planning!C23","v":148},{"$f":"planning!D23","v":0},{"$f":"planning!E23","v":0},{"$f":"planning!F23","v":"midweek"},null,{"$f":"planning!C51","v":"straat: Cardium "}]
[null,null,{"$f":"planning!C24","v":150},{"$f":"planning!D24","v":0},{"$f":"planning!E24","v":0},{"$f":"planning!F24","v":"één week"},null,"bungalow","maandag","vrijdag","verhuur"]
[null,null,{"$f":"planning!C25","v":152},{"$f":"planning!D25","v":0},{"$f":"planning!E25","v":0},{"$f":"planning!F25","v":"midweek"},null,{"$f":"planning!C55","v":5},{"$f":"planning!D55","v":0},{"$f":"planning!E55","v":0},{"$f":"planning!F55","v":"midweek"}]
[null,null,{"$f":"planning!C26","v":154},{"$f":"planning!D26","v":0},{"$f":"planning!E26","v":0},{"$f":"planning!F26","v":"weekend"},null,{"$f":"planning!C56","v":7},{"$f":"planning!D56","v":0},{"$f":"planning!E56","v":0},{"$f":"planning!F56","v":"midweek"}]
[null,null,{"$f":"planning!C27","v":156},{"$f":"planning!D27","v":0},{"$f":"planning!E27","v":0},{"$f":"planning!F27","v":"midweek "},null,{"$f":"planning!C57","v":9},{"$f":"planning!D57","v":0},{"$f":"planning!E57","v":0},{"$f":"planning!F57","v":"1 mei-24 mei"}]
[null,null,{"$f":"planning!C28","v":158},{"$f":"planning!D28","v":0},{"$f":"planning!E28","v":0},{"$f":"planning!F28","v":"midweek"},null,{"$f":"planning!C58","v":11},{"$f":"planning!D58","v":0},{"$f":"planning!E58","v":0},{"$f":"planning!F58","v":"midweek "}]
[null,null,{"$f":"planning!C29","v":160},{"$f":"planning!D29","v":0},{"$f":"planning!E29","v":0},{"$f":"planning!F29","v":"één week"},null,{"$f":"planning!C59","v":15},{"$f":"planning!D59","v":0},{"$f":"planning!E59","v":0},{"$f":"planning!F59","v":"midweek"}]
[null,null,{"$f":"planning!C30","v":162},{"$f":"planning!D30","v":0},{"$f":"planning!E30","v":0},{"$f":"planning!F30","v":"weekend"},null,{"$f":"planning!C60","v":17},{"$f":"planning!D60","v":0},{"$f":"planning!E60","v":0},{"$f":"planning!F60","v":"één week"}]
[null,null,{"$f":"planning!C31","v":164},{"$f":"planning!D31","v":0},{"$f":"planning!E31","v":0},{"$f":"planning!F31","v":"24 april-15 mei"},null,{"$f":"planning!C61","v":19},{"$f":"planning!D61","v":0},{"$f":"planning!E61","v":0},{"$f":"planning!F61","v":"midweek"}]
[null,null,{"$f":"planning!C32","v":166},{"$f":"planning!D32","v":0},{"$f":"planning!E32","v":0},{"$f":"planning!F32","v":"24 april-15 mei"},null,{"$f":"planning!C62","v":21},{"$f":"planning!D62","v":0},{"$f":"planning!E62","v":0},{"$f":"planning!F62","v":"weekend"}]
[null,null,{"$f":"planning!C33","v":168},{"$f":"planning!D33","v":0},{"$f":"planning!E33","v":0},{"$f":"planning!F33","v":"midweek"},null,{"$f":"planning!C63","v":23},{"$f":"planning!D63","v":0},{"$f":"planning!E63","v":0},{"$f":"planning!F63","v":"midweek"}]
[null,null,{"$f":"planning!C34","v":170},{"$f":"planning!D34","v":0},{"$f":"planning!E34","v":0},{"$f":"planning!F34","v":"één week"},null,{"$f":"planning!C64","v":25},{"$f":"planning!D64","v":0},{"$f":"planning!E64","v":0},{"$f":"planning!F64","v":"één week"}]
[null,null,null,null,null,null,null,{"$f":"planning!C65","v":27},{"$f":"planning!D65","v":0},{"$f":"planning!E65","v":0},{"$f":"planning!F65","v":"weekend"}]
[null,null,{"$f":"planning!C36","v":"straat: Sophiaboulevard"},null,null,null,null,{"$f":"planning!C66","v":29},{"$f":"planning!D66","v":0},{"$f":"planning!E66","v":0},{"$f":"planning!F66","v":"1- 15 mei"}]
[null,null,"bungalow","maandag","vrijdag","verhuur",null,{"$f":"planning!C67","v":31},{"$f":"planning!D67","v":0},{"$f":"planning!E67","v":0},{"$f":"planning!F67","v":"midweek"}]
[null,null,{"$f":"planning!C40","v":2},{"$f":"planning!D40","v":0},{"$f":"planning!E40","v":0},{"$f":"planning!F40","v":"midweek"},null,{"$f":"planning!C68","v":33},{"$f":"planning!D68","v":0},{"$f":"planning!E68","v":0},{"$f":"planning!F68","v":"midweek"}]
[null,null,{"$f":"planning!C41","v":4},{"$f":"planning!D41","v":0},{"$f":"planning!E41","v":0},{"$f":"planning!F41","v":"midweek"},null,{"$f":"planning!C69","v":35},{"$f":"planning!D69","v":0},{"$f":"planning!E69","v":0},{"$f":"planning!F69","v":"weekend"}]
[null,null,{"$f":"planning!C42","v":6},{"$f":"planning!D42","v":0},{"$f":"planning!E42","v":0},{"$f":"planning!F42","v":"1- 15 mei"},null,{"$f":"planning!C70","v":37},{"$f":"planning!D70","v":0},{"$f":"planning!E70","v":0},{"$f":"planning!F70","v":"één week"}]
[null,null,{"$f":"planning!C43","v":8},{"$f":"planning!D43","v":0},{"$f":"planning!E43","v":0},{"$f":"planning!F43","v":"midweek"},null,{"$f":"planning!C71","v":39},{"$f":"planning!D71","v":0},{"$f":"planning!E71","v":0},{"$f":"planning!F71","v":"24 april-15 mei"}]
[null,null,{"$f":"planning!C44","v":10},{"$f":"planning!D44","v":0},{"$f":"planning!E44","v":0},{"$f":"planning!F44","v":"midweek"},null,{"$f":"planning!C72","v":41},{"$f":"planning!D72","v":0},{"$f":"planning!E72","v":0},{"$f":"planning!F72","v":"midweek "}]
[null,null,{"$f":"planning!C45","v":12},{"$f":"planning!D45","v":0},{"$f":"planning!E45","v":0},{"$f":"planning!F45","v":"weekend"}]
[null,null,{"$f":"planning!C46","v":14},{"$f":"planning!D46","v":0},{"$f":"planning!E46","v":0},{"$f":"planning!F46","v":"midweek"}]
[null,null,{"$f":"planning!C47","v":16},{"$f":"planning!D47","v":0},{"$f":"planning!E47","v":0},{"$f":"planning!F47","v":"midweek"}]
[null,null,{"$f":"planning!C48","v":18},{"$f":"planning!D48","v":0},{"$f":"planning!E48","v":0},{"$f":"planning!F48","v":"één week"}]
[null,null,{"$f":"planning!C49","v":20},{"$f":"planning!D49","v":0},{"$f":"planning!E49","v":0},{"$f":"planning!F49","v":"midweek"}]